Cogmind - Beta 17 @@@ ROGUE MODE // 2026.08.01 @ 13:41:59 Player: Grimrest Result: Destroyed by X-57 Shotgunner with Shotgun Performance ------------- Evolutions (2) 1000 Regions Visited (3) 600 Robots Destroyed (58) 290 Value Destroyed (1466) 1466 Prototype IDs (4) 80 Alien Tech Used (0) 0 Bonus (0) 0 TOTAL SCORE: 3436 Bonus ------- None Cogmind --------- Core Integrity 0/550 Matter 300/300 Energy 11/100 System Corruption 0% Temperature Cool (0) Movement Treading (170) Location -8/Materials Parts ------- > --- POWER (2) -------- (None) > --- PROPULSION (4) --- Armored Treads > --- UTILITY (3) ------ Heat Sink Improved Targeting Computer > --- WEAPON (2) ------- (None) > --- INVENTORY (5) ---- Advanced Visual Processing Unit Improved EM Shotgun Beam Rifle Shotgun Rocket Launcher Peak State ------------ > --- POWER ------------ Light Deuterium Engine Light Deuterium Engine > --- PROPULSION ------- Aluminum Leg Aluminum Leg Aluminum Leg Improved Aluminum Leg > --- UTILITY ---------- Small Storage Unit Improved Targeting Computer Improved Targeting Computer > --- WEAPON ----------- Improved EM Shotgun Improved EM Shotgun > --- INVENTORY -------- Light Armor Plating Beam Rifle Light Assault Rifle Heavy Assault Rifle Heavy Assault Rifle Shotgun Rocket Launcher Datajack [Rating: 23] Favorites ----------- Power Heavy Ion Engine Engine Heavy Ion Engine Power Core Light Nuclear Core Propulsion Aluminum Leg Treads Armored Treads Leg Aluminum Leg Hover Unit Hover Unit Utility Improved Targeting Computer Device ECM Suite Storage Small Storage Unit Processor Improved Targeting Computer Protection Light Armor Plating Weapon Medium Laser Energy Gun Medium Laser Ballistic Gun Heavy Assault Rifle Launcher Grenade Launcher Build | -11 -10 -9 -8 ------- Run | Yrd Mat Mat Mat Slots Evolved 4 | . . 2 2 Power 1 | . . . 1 Propulsion 2 | . . 1 1 Utility 1 | . . 1 . Weapon . | . . . . Parts Attached 42 | 8 3 12 19 Power 9 | 1 1 1 6 Engine 8 | 1 . 1 6 Core 1 | . 1 . . Reactor . | . . . . Propulsion 13 | 3 . 4 6 Treads 2 | 1 . . 1 Leg 10 | 2 . 3 5 Wheel . | . . . . Hover 1 | . . 1 . Flight . | . . . . Utility 6 | 1 1 2 2 Device 2 | . 1 . 1 Storage 1 | 1 . . . Processor 2 | . . 2 . Hackware . | . . . . Protection 1 | . . . 1 Artifact . | . . . . Weapon 14 | 3 1 5 5 Energy Gun 9 | 2 . 2 5 Energy Cannon . | . . . . Ballistic Gun 3 | 1 . 2 . Ballistic Cannon . | . . . . Launcher 2 | . 1 1 . Special Weapon . | . . . . Impact Weapon . | . . . . Slashing Weapon . | . . . . Piercing Weapon . | . . . . Special Melee Weapon . | . . . . Unidentified Prototypes 2 | . . 1 1 Parts Lost 30 | . . 6 24 Power 7 | . . 1 6 Propulsion 10 | . . 2 8 Utility 3 | . . . 3 Weapon 10 | . . 3 7 Highest Loss Streak 12 | . . 5 12 To Critical Strikes . | . . . . Average Backups 6 | 2 5 7 6 Power . | . . 1 . Propulsion 1 | 1 2 . . Utility . | . . . . Weapon 3 | . 1 3 5 Tool/Special . | . . . . Unused Backups 7 | . . 2 5 Power 1 | . . . 1 Propulsion 1 | . . 1 . Utility 1 | . . . 1 Weapon 2 | . . . 2 Tool/Special 2 | . . 1 1 Average Slot Usage (%) 87 | . 97 95 70 Engine 8 | . 7 7 11 Core 3 | . 7 2 . Leg 23 | . 28 25 16 Hover 2 | . . 5 2 Device 4 | . 11 1 1 Storage 11 | . 14 11 9 Processor 11 | . . 19 12 Energy Gun 14 | . 26 10 6 Ballistic Gun 6 | . . 10 9 Peak Build Rating 23 | 6 9 16 23 Average Rating 11 | 4 7 14 14 On Entrance 7 | . 6 9 16 Avg Prop Armor Cover (%) 6 | 9 8 4 4 Naked Turns . | . . . . Heaviest Build 24 | 14 17 19 24 Greatest Support 43 | 10 10 33 43 Greatest Overweight (x) 6 | 1 1 2 6 Average Overweight (x) . | . 1 . . Largest Inventory Capacity 8 | 8 8 8 8 Average Capacity 7 | 6 8 8 7 Most Carried 8 | 5 8 8 8 Average Carried 6 | 2 5 7 6 Final Capacity 8 | 8 8 8 5 Final Carried 8 | 2 8 8 5 Class Distribution -------------------- 96% | Mutant 3% | Scavenger-Mutant Dominant Class ---------------- Mutant | -10/Materials Mutant | -9/Materials Mutant | -8/Materials Resources | -11 -10 -9 -8 ----------- Run | Yrd Mat Mat Mat Matter Collected 963 | 202 91 250 420 Remotely . | . . . . Salvage Created 1780 | 12 183 567 1018 Parts 129 | 2 19 35 73 Haulers Intercepted 1 | . . 1 . Recyclers Shooed 1 | . . 1 . Parts Field Recycled . | . . . . Retrieved Matter . | . . . . Parts Self-Destructed . | . . . . Prevented . | . . . . Parts Restored . | . . . . Kills | -11 -10 -9 -8 ------- Run | Yrd Mat Mat Mat Combat Hostiles Destroyed 41 | . 6 13 22 Guns 33 | . 2 10 21 AOE 4 | . 4 . . Classes Destroyed 9 | 1 5 2 1 Worker 8 | 1 3 1 3 Builder 3 | . 1 . 2 Tunneler 1 | . 1 . . Hauler 1 | . . 1 . Watcher 4 | . 2 1 1 Swarmer 15 | . 3 4 8 Grunt 16 | . 3 3 10 Sentry 8 | . . 6 2 Specialist 2 | . . . 2 Best Kill Streak 10 | 1 9 4 10 Combat Bots Only 6 | . 3 4 6 Max Kills in Single Turn 6 | 1 6 1 2 Gunslinging 1 | . 1 . 1 Exploded 2 | . 2 . . Melee . | . . . . Uniques/NPCs Destroyed . | . . . . Combat | -11 -10 -9 -8 -------- Run | Yrd Mat Mat Mat Hostile Shots Fired 344 | . 28 74 242 Missed 109 | . 10 20 79 Hits 235 | . 18 54 163 Projectile 235 | . 18 54 163 Critical Strikes 6 | . . 1 5 Damage Taken 3287 | . 205 674 2408 Core 696 | . 33 102 561 Absorbed by Shields . | . . . . Core Remaining (%) 86 | 100 86 74 . Volleys Fired 171 | 3 16 53 99 Largest 2 | 2 2 2 2 Hottest 126 | 100 100 106 126 Shots Fired 281 | 6 30 92 153 Gun 278 | 6 27 92 153 Cannon . | . . . . Launcher 3 | . 3 . . Special . | . . . . Kinetic 126 | . . 37 89 Thermal 128 | 6 27 55 40 Explosive 3 | . 3 . . Electromagnetic 24 | . . . 24 Robot Hit Streak 16 | 2 9 11 16 Robot Miss Streak 5 | 3 5 4 4 Penetration Max . | . . . . Secondary Targets 6 | . 1 2 3 Max Gunslinging Chain 1 | . 1 1 1 Shots Hit Robots 185 | 2 15 54 114 Core Hits 95 | 1 15 23 56 Critical Kills 1 | . . . 1 Critical Parts Destroyed . | . . . . Critical Strikes 6 | . 1 4 1 Burn 5 | . 1 4 . Destroy 1 | . . . 1 Melee Attacks . | . . . . Impact . | . . . . Slashing . | . . . . Piercing . | . . . . Sneak Attacks . | . . . . Combat Hostiles . | . . . . Follow-up Attacks . | . . . . Damage Inflicted 3357 | 25 914 733 1685 Guns 2638 | 25 199 729 1685 Cannons . | . . . . Explosions 715 | . 715 . . Melee . | . . . . Ramming 4 | . . 4 . Kinetic 1048 | . . 214 834 Thermal 1342 | 25 199 515 603 Explosive 715 | . 715 . . Electromagnetic 248 | . . . 248 Impact . | . . . . Slashing . | . . . . Piercing . | . . . . Highest Corruption . | . . . . Average Corruption . | . . . . Corruption Purged . | . . . . Corruption Blocked . | . . . . Overload Shots . | . . . . Overflow Damage 56 | . 56 . . Projectiles . | . . . . Explosions 56 | . 56 . . Melee . | . . . . Knockbacks . | . . . . Impact . | . . . . Kinetic . | . . . . Secondary . | . . . . Self-Inflicted Damage . | . . . . Shots . | . . . . Rammed . | . . . . Targets Rammed 1 | . . 1 . Kicked 1 | . . 1 . Crushed . | . . . . Highest Temperature 312 | 117 282 312 201 Average Temperature 79 | 58 80 96 64 Received Heat Transfer 1056 | . 102 243 711 Effects 1 | . . 1 . Short Circuit 1 | . . 1 . Siege Activations . | . . . . Martial Activations . | . . . . Shielding Activations . | . . . . Robots Disrupted . | . . . . Combat Hostiles . | . . . . Robots Corrupted . | . . . . Combat Hostiles . | . . . . Parts Fried . | . . . . Impact Corruptions . | . . . . Robots Melted 4 | . . 3 1 Combat Hostiles 4 | . . 3 1 Parts Melted 10 | . . 10 . Heat Transferred 3774 | 74 666 1702 1332 Parts Sabotaged . | . . . . Parts Stolen . | . . . . Parts Stripped . | . . . . Power Chain Reactions . | . . . . Alert | -11 -10 -9 -8 ------- Run | Yrd Mat Mat Mat Maximum Alert Level 1 | . 1 . 1 Low Security (%) 95 | 100 89 100 94 Level 1 4 | . 10 . 5 Level 2 . | . . . . Level 3 . | . . . . Level 4 . | . . . . Level 5 . | . . . . High Security . | . . . . Max Security . | . . . . Peak Influence 219 | 5 219 161 211 Initial 72 | . . 72 33 Average 89 | . 62 112 110 Influence Increases 1285 | 5 293 369 618 Destroy 0b10 Robot/C 820 | . 120 260 440 Destroy 0b10 Robot/NC 85 | 5 35 15 30 Destroy Leader 190 | . 34 74 82 Successful Hack 9 | . . 4 5 Disable Machine 60 | . 60 . . Destroy Structure 46 | . 44 1 1 Lose Combat Pursuer 75 | . . 15 60 Influence Decreases 1134 | 5 122 461 546 Entered New Map 145 | . . 99 46 Time Decay 691 | 5 122 302 262 Lost Part 298 | . . 60 238 Squads Dispatched 6 | . 1 . 5 Investigation . | . . . . Extermination . | . . . . Reinforcement 6 | . 1 . 5 Assault . | . . . . Garrison . | . . . . Intercept . | . . . . Searches Triggered . | . . . . Construction Impeded . | . . . . Haulers Reinforced . | . . . . Active Scanning Responses . | . . . . Cargo Convoy Interrupts . | . . . . Stealth | -11 -10 -9 -8 --------- Run | Yrd Mat Mat Mat Distress Signals 5 | . 3 . 2 Communications Jammed . | . . . . Distress Signals . | . . . . Times Spotted 68 | . 16 22 30 Peak Tracking Total 7 | . 5 6 7 Tactical Retreats 8 | . 3 1 4 ECM-based Alert Blocks 6 | . 6 . . Traps | -11 -10 -9 -8 ------- Run | Yrd Mat Mat Mat Traps Triggered . | . . . . Indirectly . | . . . . Trap Hack Attempts . | . . . . Triggered . | . . . . Disarmed . | . . . . Reprogrammed . | . . . . Reused . | . . . . Traps Extracted . | . . . . Installed . | . . . . Triggered . | . . . . Machines | -11 -10 -9 -8 ---------- Run | Yrd Mat Mat Mat Machines Disabled 4 | . 4 . . Max in Single Turn 3 | . 3 . . Machines Repaired . | . . . . Machines Dismantled . | . . . . Machines Sabotaged . | . . . . Overloaded Fab Kills . | . . . . Hacking | -11 -10 -9 -8 --------- Run | Yrd Mat Mat Mat Machines Accessed 6 | . 2 3 1 Terminals 5 | . 1 3 1 Fabricators . | . . . . Repair Stations . | . . . . Recycling Units 1 | . 1 . . Scanalyzers . | . . . . Garrison Access . | . . . . Total Hacks 15 | . 5 7 3 Successful 7 | . 4 2 1 Failed 8 | . 1 5 2 Catastrophic . | . . . . Database Lockouts . | . . . . Manual 1 | . 1 . . Terminals 13 | . 3 7 3 Fabricators . | . . . . Repair Stations . | . . . . Recycling Units 2 | . 2 . . Scanalyzers . | . . . . Garrison Access . | . . . . Terminal Hacks 5 | . 2 2 1 Record 2 | . 1 1 . Prototype ID Bank 1 | . . . 1 Emergency Access Points 1 | . . 1 . Alert Level 1 | . 1 . . Fabricator Hacks . | . . . . Repair Station Hacks . | . . . . Recycling Unit Hacks 2 | . 2 . . Report Inventory 1 | . 1 . . Retrieve Components 1 | . 1 . . Scanalyzer . | . . . . Garrison Access Hacks . | . . . . Unauthorized Hacks . | . . . . Terminals . | . . . . Fabricators . | . . . . Repair Stations . | . . . . Recycling Units . | . . . . Scanalyzers . | . . . . Garrison Access . | . . . . Data Cores Recovered . | . . . . Used . | . . . . Hacking Detections 4 | . . 3 1 Full Trace Events . | . . . . Feedback Events . | . . . . Feedback Blocked . | . . . . Robot Schematics Acquired . | . . . . Robots Built . | . . . . Authchips . | . . . . Time . | . . . . Total Robot Build Rating . | . . . . Part Schematics Acquired . | . . . . Parts Built . | . . . . Authchips . | . . . . Time . | . . . . Total Part Build Rating . | . . . . Part Studies Acquired . | . . . . Parts Repaired . | . . . . Time . | . . . . Parts Recycled . | . . . . Recycled Matter . | . . . . Retrieved Matter . | . . . . Retrieved Components 2 | . 2 . . Parts Scanalyzed . | . . . . Part Schematics Acquired . | . . . . Parts Damaged . | . . . . Bothacking | -11 -10 -9 -8 ------------ Run | Yrd Mat Mat Mat Used RIF Installer . | . . . . Robots Hacked . | . . . . Non-combat . | . . . . Combat . | . . . . Robot Hacks Applied . | . . . . Relay Couplers Released . | . . . . Fabnet Peak Effective % . | . . . . Robots Rewired . | . . . . Allies Hacked . | . . . . Hacks Repelled . | . . . . Allies | -11 -10 -9 -8 -------- Run | Yrd Mat Mat Mat Total Allies . | . . . . Largest Group . | . . . . Highest-Rated Group . | . . . . Highest-Rated Ally . | . . . . Total Orders . | . . . . Ally Attacks . | . . . . Total Damage . | . . . . Kills . | . . . . Allies Corrupted . | . . . . Allies Melted . | . . . . Intel | -11 -10 -9 -8 ------- Run | Yrd Mat Mat Mat Active Infowar (turns) 562 | . 491 71 . ECM 562 | . 491 71 . Robot Analysis Total . | . . . . Derelict Logs Recovered . | . . . . Drone Launches . | . . . . Drone Recoveries . | . . . . Exploration | -11 -10 -9 -8 ------------- Run | Yrd Mat Mat Mat Turns Passed 1936 | 127 564 674 571 Spaces Moved 945 | 78 267 413 187 Core 54 | 31 . . 23 Treads 21 | . . . 21 Legs 864 | 47 267 407 143 Wheels . | . . . . Hover 6 | . . 6 . Flight . | . . . . Fastest Speed 50 | 50 190 120 100 Average Speed 146 | 127 190 120 148 Slowest Speed 350 | 190 190 180 350 Overloaded Moves . | . . . . Propulsion Burnouts . | . . . . Robots Hopped . | . . . . Potential Cave-ins . | . . . . Cave-ins Triggered . | . . . . Exploration Rate (%) 26 | 4 48 43 11 Regions Visited 3 Branch Regions . Pre-discovered Areas . | . . . . Known Exits Taken . | . . . . Unknown Exits Taken 3 | 1 1 1 . Scrap Searched . | . . . . Spaces Dug . | . . . . Terrain Destroyed 45 | . 45 . . Melee . | . . . . Projectile . | . . . . AOE 45 | . 45 . . Terrain Rammed . | . . . . Walls Destroyed . | . . . . Machines Disabled . | . . . . Actions | -11 -10 -9 -8 --------- Run | Yrd Mat Mat Mat Total 1226 | 100 293 500 333 Wait . | . . . . Move 942 | 77 266 412 187 Hop . | . . . . Pick Up 48 | 9 7 13 19 Fast Attach 1 | . . 1 . Attach 35 | 7 1 9 18 Detach 1 | 1 . . . Swap 16 | 2 3 5 6 Drop 11 | 1 . 6 4 Fire 171 | 3 16 53 99 Melee . | . . . . Ram . | . . . . Kick 1 | . . 1 . Crush . | . . . . Escape Stasis . | . . . . Rewire . | . . . . Trap . | . . . . Miscellaneous . | . . . . Route ------- -11/Scrapyard -10/Materials -9/Materials (discovered 4 exits: *Mat / [*Min] / [*Sto x2]) -8/Materials History --------- Turn | Location | Event 2 | -11/Scrapyard | Met Revision 17 8 | -11/Scrapyard | Discovered new exit (range 15) 128 | -11/Scrapyard | Entered Materials 317 | -10/Materials | Build established: Mutant 630 | -10/Materials | Discovered new exit (range 4) 692 | -10/Materials | Entered another Materials area 692 | -9/Materials | Evolved 2 slots: Propulsion x1, Utility x1 897 | -9/Materials | Discovered new exit (range 16) 1036 | -9/Materials | Lost 5 parts (2n3w) 1147 | -9/Materials | Discovered new exit (range 13) 1187 | -9/Materials | Discovered new exit (range 9) 1345 | -9/Materials | Discovered new exit (range 15) 1366 | -9/Materials | Entered another Materials area 1366 | -8/Materials | Evolved 2 slots: Power x1, Propulsion x1 1526 | -8/Materials | Lost 3 parts (3n) 1635 | -8/Materials | Lost 3 parts (2p1u) 1782 | -8/Materials | Core integrity fell below 50% 1802 | -8/Materials | Core integrity fell below 20% 1812 | -8/Materials | Lost 12 parts (3p5n1u3w) 1937 | -8/Materials | Destroyed by X-57 Shotgunner with Shotgun Last Messages --------------- 01826_ Acquired 1 matter. 01828_ Lgt. Assault Rifle destroyed. 01830_ Acquired Pulse Rifle. 01833_ Y-45 Defender destroyed. 01834_ Acquired 20 matter. 01835_ K-01 Serf collects debris. 01844_ Acquired Heat Sink. 01856_ Acquired Arm. Treads. 01860_ Acquired Adv. Visual Processing Unit. 01866_ Acquired Imp. Deuterium Engine. 01868_ Acquired 30 matter. 01886_ K-01 Serf sends out distress signal. 01897_ Imp. Deuterium Engine destroyed. 01898_ G-47 Trooper destroyed. 01899_ A-02 Transporter destroyed. 01923_ Pulse Rifle destroyed. 01931_ Sml. Storage Unit destroyed. 01935_ Field Laser destroyed. 01935_ K-01 Serf collects debris. 01937_ R-06 Scavenger collects Gauss Rifle. Map ----- +----------------------------------------------------+ | ?????????????????????????????????????????????????? | | ?????????????????????????????????????????????????? | | ?????????????????????????????????????????????????? | | ?????????????????????????????????????????????????? | | ?????????????????????????????????????????????????? | | ?????????????????????????????????????????????????? | | ?????????????????????????????????????????????????? | | ?????????????????????????????????????????????????? | | ?????????????????????????????????????????????????? | | ?????????????????????????????????????????????????? | | ?????????????????? ??????????????????????????????? | | ?????????????????? ??????????????????????????????? | | ?????????????????? ??????????????????????????????? | | ?????????????????? ??????????????????????????????? | | ?????????????????? ??????????????????????????????? | | ?????????????????? ??????????????????????????????? | | ?????????????????? ??????????????????????????????? | | ?????????????????# #?????????????????????????????? | | ?????????????????# #?????????????????????????????? | | ?????????????????# ########??????????????????????? | | ?????????????????+!#!=! ! #??????????? ??????????? | | ?????????????????#[#%!/[ #????????#? ??????????? | | ?????????????????#[#=% !g #??????? # =???????????? | | ?????????????????#=#="""xx#??????? + ????????????? | | ?????????????????#%#%""" #?????? #?????????????? | | ?????????????????#kr%=%" @#????? #?????????????? | | ?????????????????#u########????# ##????????????? | | ???????????????###[############ #????????????? | | ???????????????##!%* [%%[[ #????????????? | | ???????????????##[%== ![=%! H #????????????? | | ????????????????#!== ==[%%* % #????????????? | | ??????????????? #[% #######+###% #????????????? | | ??????????????###=%%#????#! =%###??##????????????? | | ????????????????# *#????# % [[#?????????????????? | | ????????????????# ######|===##?????????????????? | | ????????????????# =% =+%=!!#??????????????????? | | ????????????????# ######%!/ #??????????????????? | | ????????????????# #???##* #??????????????????? | | ????????????????##+##????# #??????????????????? | | ?????????????????????????# #??????????????????? | | ?????????????????????????# #??????????????????? | | ?????????????????????????##+###??????????????????? | | ??????????????????????????# #????????????????????? | | ??????????????????????????# #????????????????????? | | ??????????????????????????# #????????????????????? | | ??????????????????????????# #????????????????????? | | ??????????????????????????# #????????????????????? | | ??????????????????????????# #????????????????????? | | ??????????????????????????# #????????????????????? | | ??????????????????????????# ########?????????????? | +----------------------------------------------------+ Best States ------------- Heat Dissipation 41 Energy Generation 23 Energy Capacity 320 Matter Stores 300 Matter Capacity 300 Sight Range 16 Terrain Scan Density 10 ECM Strength 1 Armor Coverage 150 Evasion (%) 55 Targeting Accuracy 12 Recoil Reduction 1 Item Schematics ----------------- None Robot Schematics ------------------ None Fabricated ------------ Nothing Repaired ---------- Nothing Studied --------- None Alien Tech Used ----------------- None Achievements -------------- DATA ERROR: Steam Global Achievement% For Emergencies Only Ghost 'Em Heavy Suspicion It's Just You Organ Harvest There's More Where That Came From You Again Challenges ------------ None Game ------ Seed FocalMiniProtection Manual? 0 Play Time 00:27:44 Cumulative 7.2 hours Start 2026.07.26 @ 03:51:30 End 2026.08.01 @ 13:41:59 Sessions 3 Manual Loads 0 Difficulty Rogue Special Mode None Game No. 16 Rogue 16 Adventurer 0 Explorer 0 Win Type - Total 0 Types 0/0/0/0/0/0/0/0/0/0 Lore% 10 Gallery% 10 Achievement% 9 Wizard Run 0 Options --------- Layout 1 ASCII 0 Keyboard 0 Movement Mouse Keybinds 0 Fullscreen 1 Font 24/Smallcaps Map View 50x35 Zoom Use 0% Tactical HUD 1 Map Filters NONE Filters NONE Steam 1 RUN: ea493c36-a1ca-460b-bf86-4b596d7335b8